[Event "European Corporate Championship 2022"]
[Site "Rotterdam"]
[Date "2022.06.19"]
[Round "6.15"]
[White "Lie, Michael"]
[Black "Vosooghi Dizaji, Mehdi"]
[Result "1-0"]
[ECO "D00"]
[WhiteElo "1798"]
[BlackElo "1878"]
[Annotator "NA RC"]
[PlyCount "115"]
[EventDate "2022.06.18"]
[EventType "team-tourn"]
[EventCountry "NED"]
[SourceTitle "playchess.com"]
[Source "ChessBase"]
[SourceQuality "1"]
[TimeControl "900+5"]

1. d4 {[%emt 0:00:02]} Nf6 {[%emt 0:00:03]} 2. Bg5 {[%emt 0:00:02]} d5 {[%emt 0:00:10]} 3. e3 {[%emt 0:00:03]} Bf5 {[%emt 0:00:09]} 4. c4 {[%emt 0:00:07]} c6 {[%emt 0:00:59]} 5. Nc3 {[%emt 0:00:04]} e6 {[%emt 0:00:04]} 6. Qb3 {[%emt 0:00:02]} Qb6 {[%emt 0:00:13]} 7. c5 {[%emt 0:00:02]} Qxb3 {[%emt 0:00:04]} 8. axb3 {[%emt 0:00:02]} Be7 {[%emt 0:00:12]} 9. b4 {[%emt 0:00:19]} Nbd7 {[%emt 0:00:23]} 10. Nf3 {[%emt 0:02:38]} O-O {[%emt 0:00:04]} 11. h3 {[%emt 0:00:13]} h6 {[%emt 0:00:10]} 12. Bh4 {[%emt 0:00:22]} b6 {[%emt 0:00:12]} 13. g4 {[%emt 0:00:21]} Bc2 {[%emt 0:00:32]} 14. Bg3 {[%emt 0:00:21]} Ne4 {[%emt 0:00:38]} 15. Nxe4 {[%emt 0:02:30]} Bxe4 {[%emt 0:00:03]} 16. Bg2 {[%emt 0:00:04]} Bd3 {[%emt 0:00:15]} 17. Kd2 {[%emt 0:00:58]} Bb5 {[%emt 0:00:13]} 18. Bf1 {[%emt 0:00:11]} a6 {[%emt 0:00:07]} 19. Bc7 {[%emt 0:00:48]} bxc5 {[%emt 0:00:14]} 20. bxc5 {[%emt 0:00:04]} Rfc8 {[%emt 0:00:11]} 21. Bg3 {[%emt 0:00:02]} Nf6 {[%emt 0:00:05]} 22. Bd3 {[%emt 0:00:41]} Rd8 {[%emt 0:01:12]} 23. Ne5 {[%emt 0:00:27]} Ne4+ {[%emt 0:00:16]} 24. Bxe4 {[%emt 0:00:37]} dxe4 {[%emt 0:00:02]} 25. Kc3 {[%emt 0:00:03]} f5 {[%emt 0:02:46]} 26. Nc4 {[%emt 0:00:26]} Bf6 {[%emt 0:01:11]} 27. Nd6 {[%emt 0:01:25]} g6 {[%emt 0:01:28]} 28. Rhg1 {[%emt 0:00:08]} Bd3 {[%emt 0:00:24]} 29. Bf4 {[%emt 0:00:56]} Kh7 {[%emt 0:00:16]} 30. Bh2 {[%emt 0:00:50]} Rd7 {[%emt 0:01:17]} 31. b3 {[%emt 0:00:16]} Bh4 {[%emt 0:00:22]} 32. Rg2 {[%emt 0:00:08]} Be2 {[%emt 0:00:06]} 33. Bg3 {[%emt 0:00:19]} Bf3 {[%emt 0:00:22]} 34. Rgg1 {[%emt 0:00:04]} Bf6 {[%emt 0:00:15]} 35. Bh2 {[%emt 0:00:15]} Bh4 {[%emt 0:00:17]} 36. Bg3 {[%emt 0:00:02]} Bf6 {[%emt 0:00:17]} 37. Bh2 {[%emt 0:00:01]} Re7 {[%emt 0:00:43]} 38. Nc4 {[%emt 0:00:04]} Rb7 {[%emt 0:00:18]} 39. Ra2 {[%emt 0:00:21]} Rb5 {[%emt 0:00:31]} 40. b4 {[%emt 0:00:03]} a5 {[%emt 0:00:23]} 41. Rxa5 {[%emt 0:00:09]} Raxa5 {[%emt 0:00:04]} 42. Nxa5 {[%emt 0:00:02]} g5 {[%emt 0:00:15]} 43. Nxc6 {[%emt 0:00:09]} Rb7 {[%emt 0:00:15]} 44. Bd6 {[%emt 0:00:25]} Rd7 {[%emt 0:00:13]} 45. b5 {[%emt 0:00:07]} Rb7 {[%emt 0:00:02]} 46. b6 {[%emt 0:00:04]} Be2 {[%emt 0:00:07]} 47. gxf5 {[%emt 0:00:07]} exf5 {[%emt 0:00:09]} 48. Ra1 {[%emt 0:00:02]} Bb5 {[%emt 0:00:10]} 49. Na5 {[%emt 0:00:04]} Rd7 {[%emt 0:00:14]} 50. b7 {[%emt 0:00:03]} Rd8 {[%emt 0:00:09]} 51. b8=Q {[%emt 0:01:47]} Rxb8 {[%emt 0:00:01]} 52. Bxb8 {[%emt 0:00:00]} Bd3 {[%emt 0:00:03]} 53. Be5 {[%emt 0:00:00]} Bd8 {[%emt 0:00:05]} 54. Nc4 {[%emt 0:00:00]} Kg6 {[%emt 0:00:01]} 55. Nb2 {[%emt 0:00:00]} Be2 {[%emt 0:00:02]} 56. Re1 {[%emt 0:00:00]} Bf3 {[%emt 0:00:01]} 57. c6 {[%emt 0:00:00]} Ba5+ {[%emt 0:00:03]} 58. Kc2 {[%emt 0:00:00]} 1-0

[Event "European Corporate Championship 2022"]
[Site "Rotterdam"]
[Date "2022.06.19"]
[Round "6.17"]
[White "Pardo Simon, David"]
[Black "Giri, Anish"]
[Result "0-1"]
[ECO "D94"]
[WhiteElo "2461"]
[BlackElo "2761"]
[Annotator "TA"]
[PlyCount "48"]
[EventDate "2022.06.18"]
[EventType "team-tourn"]
[EventCountry "NED"]
[SourceTitle "playchess.com"]
[Source "ChessBase"]
[SourceQuality "1"]
[TimeControl "900+5"]

{[%evp 20,48,-38,-19,-35,-35,-49,-53,-46,-98,-107,-113,-119,-158,-127,-126,-118,-116,-109,-310,-304,-330,-323,-306,-166,-172,-175,-186,-187,-465,-459]} 1. Nf3 {[%emt 0:00:03]} Nf6 {[%emt 0:00:09]} 2. e3 {[%emt 0:00:24]} c5 {[%emt 0:00:13]} 3. d4 {[%emt 0:00:13]} d5 {[%emt 0:00:05]} 4. c4 {[%emt 0:00:31]} cxd4 {[%emt 0:00:05]} 5. exd4 {[%emt 0:00:17]} g6 {[%emt 0:00:01]} 6. Nc3 {[%emt 0:00:29]} Bg7 {[%emt 0:00:02]} 7. cxd5 {[%emt 0:00:46]} Nxd5 {[%emt 0:00:02]} 8. Bc4 {[%emt 0:01:08]} Nxc3 {[%emt 0:00:22]} 9. bxc3 {[%emt 0:00:01]} Qc7 {[%emt 0:00:06]} 10. Qb3 {[%emt 0:00:38]} O-O {[%emt 0:00:06]} 11. O-O {[%emt 0:00:23]} Nc6 {[%emt 0:00:04] [#] ...Na5 is the strong threat. D94: Grünfeld: 4 Nf3 Bg7 5 e3.} 12. Ng5 {[%emt 0:01:30][%cal Rc4f7]} e6 {[%emt 0:00:11] [#] Strongly threatening ...Na5.} 13. Bb5 $146 {[%emt 0:00:49]} ({Predecessor:} 13. Bd3 Na5 14. Qc2 e5 15. Nf3 exd4 16. Nxd4 Nc4 17. Qb3 Ne5 18. Be4 Ng4 19. g3 {0-1 (28) Bassani,J (1959)-Piccoli,L (2104) Florianopolis 2019}) 13... Bd7 {[%emt 0:00:54][%cal Bc8d7,Bd7c6,Bc6d5][%mdl 32] Black is slightly better.} 14. Bxc6 {[%emt 0:02:06]} (14. Qb2 $15) 14... Bxc6 $17 {[%emt 0:00:04]} ({Much worse is} 14... bxc6 $6 15. Be3 $11) 15. Re1 {[%emt 0:00:29]} Bd5 {[%emt 0:00:15] A strong pair of Bishops.} 16. Qa3 {[%emt 0:00:26]} b5 {[%emt 0:01:36][%cal Bb7b5,Bb5b4][%mdl 32]} 17. Ne4 {[%emt 0:01:09]} Qc6 {[%emt 0:00:45]} 18. f3 {[%emt 0:00:30]} a5 $36 {[%emt 0:00:01][%cal Ob5b4][%mdl 2048] [#] Threatens to win with ...b4! Black has strong initiative.} 19. Bg5 $2 {[%emt 0:01:19] Now White is beyond hope.} (19. Qb2 $17) 19... b4 $19 {[%emt 0:00:34]} 20. Qc1 {[%emt 0:00:03]} Bxe4 {[%emt 0:00:07]} 21. fxe4 {[%emt 0:00:08]} Qxc3 {[%emt 0:00:30]} (21... bxc3 $142 22. e5 Rfb8) 22. Qxc3 {[%emt 0:00:02]} bxc3 {[%emt 0:00:01]} 23. e5 {[%emt 0:00:01]} Rfc8 {[%emt 0:00:04]} 24. Be7 $2 {[%emt 0:00:14]} (24. Rac1) 24... Bh6 {[%emt 0:00:15] Weighted Error Value: White=0.48/Black=0.12 (very precise)} 0-1

[Event "European Corporate Championship 2022"]
[Site "Rotterdam"]
[Date "2022.06.19"]
[Round "6.18"]
[White "Geldhof, Alexander"]
[Black "Jain Aum"]
[Result "0-1"]
[ECO "C01"]
[WhiteElo "1833"]
[BlackElo "1591"]
[Annotator "NA RC"]
[PlyCount "94"]
[EventDate "2022.06.18"]
[EventType "team-tourn"]
[EventCountry "NED"]
[SourceTitle "playchess.com"]
[Source "ChessBase"]
[SourceQuality "1"]
[TimeControl "900+5"]

1. e4 {[%emt 0:00:02]} e6 {[%emt 0:00:04]} 2. Nf3 {[%emt 0:00:04]} d5 {[%emt 0:00:02]} 3. exd5 {[%emt 0:00:01]} exd5 {[%emt 0:00:03]} 4. d4 {[%emt 0:00:01]} Bd6 {[%emt 0:00:10]} 5. Bd3 {[%emt 0:00:11]} Nf6 {[%emt 0:02:49]} 6. Bg5 {[%emt 0:00:11]} O-O {[%emt 0:00:05]} 7. O-O {[%emt 0:00:02]} Bg4 {[%emt 0:00:01]} 8. Nbd2 {[%emt 0:00:06]} Nbd7 {[%emt 0:00:03]} 9. c3 {[%emt 0:00:03]} c6 {[%emt 0:00:02]} 10. Qc2 {[%emt 0:00:03]} Qc7 {[%emt 0:00:02]} 11. Rae1 {[%emt 0:00:58]} Rae8 {[%emt 0:00:04]} 12. Bf5 {[%emt 0:01:43]} Qb8 {[%emt 0:01:50]} 13. h3 {[%emt 0:01:53]} Bxf5 {[%emt 0:01:10]} 14. Qxf5 {[%emt 0:00:07]} Rxe1 {[%emt 0:00:09]} 15. Rxe1 {[%emt 0:00:02]} Re8 {[%emt 0:00:03]} 16. Rxe8+ {[%emt 0:03:49]} Qxe8 {[%emt 0:00:05]} 17. Bxf6 {[%emt 0:00:35]} Nxf6 {[%emt 0:00:46]} 18. Ne5 {[%emt 0:00:03]} Qe6 {[%emt 0:01:16]} 19. Qxe6 {[%emt 0:00:42]} fxe6 {[%emt 0:00:01]} 20. g4 {[%emt 0:00:46]} g5 {[%emt 0:00:58]} 21. Kg2 {[%emt 0:00:23]} h6 {[%emt 0:00:42]} 22. f4 {[%emt 0:01:10]} gxf4 {[%emt 0:01:25]} 23. Kf3 {[%emt 0:00:04]} Bxe5 {[%emt 0:00:08]} 24. dxe5 {[%emt 0:00:01]} Nd7 {[%emt 0:00:01]} 25. Kxf4 {[%emt 0:00:01]} Nc5 {[%emt 0:00:01]} 26. Nf3 {[%emt 0:02:54]} Nd3+ {[%emt 0:00:42]} 27. Kg3 {[%emt 0:00:19]} Nxb2 {[%emt 0:00:10]} 28. g5 {[%emt 0:00:15]} hxg5 {[%emt 0:03:41]} 29. Nxg5 {[%emt 0:00:01]} Na4 {[%emt 0:00:15]} 30. Nxe6 {[%emt 0:00:07]} Nxc3 {[%emt 0:00:03]} 31. h4 {[%emt 0:00:46]} Ne4+ {[%emt 0:00:26]} 32. Kf4 {[%emt 0:00:05]} b5 {[%emt 0:00:17]} 33. h5 {[%emt 0:00:09]} Nc3 {[%emt 0:00:06]} 34. h6 {[%emt 0:00:03]} Kh7 {[%emt 0:00:04]} 35. Kg5 {[%emt 0:00:04]} Ne4+ {[%emt 0:00:00]} 36. Kf5 {[%emt 0:00:02]} Kxh6 {[%emt 0:00:03]} 37. Nd4 {[%emt 0:00:06]} Ng3+ {[%emt 0:00:10]} 38. Ke6 {[%emt 0:00:03]} c5 {[%emt 0:00:07]} 39. Nc6 {[%emt 0:00:14]} d4 {[%emt 0:00:06]} 40. Kf6 {[%emt 0:00:02]} d3 {[%emt 0:00:07]} 41. e6 {[%emt 0:00:01]} d2 {[%emt 0:00:03]} 42. e7 {[%emt 0:00:01]} d1=Q {[%emt 0:00:03]} 43. e8=Q {[%emt 0:00:01]} Qf3+ {[%emt 0:00:07]} 44. Ke6 {[%emt 0:00:07]} Qe4+ {[%emt 0:00:05]} 45. Ne5 {[%emt 0:00:01]} Qf5+ {[%emt 0:00:03]} 46. Kd6 {[%emt 0:00:05]} Ne4+ {[%emt 0:00:02]} 47. Kd5 {[%emt 0:00:06]} Nf6+ {[%emt 0:00:02]} 0-1

[Event "European Corporate Championship 2022"]
[Site "Rotterdam"]
[Date "2022.06.19"]
[Round "6.19"]
[White "Maral Pranav"]
[Black "Toledano Llinares, Juan A."]
[Result "1-0"]
[ECO "D60"]
[WhiteElo "1329"]
[BlackElo "2252"]
[Annotator "RC"]
[PlyCount "79"]
[EventDate "2022.06.18"]
[EventType "team-tourn"]
[EventCountry "NED"]
[SourceTitle "playchess.com"]
[Source "ChessBase"]
[SourceQuality "1"]
[TimeControl "900+5"]

1. d4 {[%emt 0:00:07]} d5 {[%emt 0:00:01]} 2. c4 {[%emt 0:00:01]} c6 {[%emt 0:00:03]} 3. Nc3 {[%emt 0:00:02]} Nf6 {[%emt 0:00:03]} 4. Bg5 {[%emt 0:00:03]} e6 {[%emt 0:00:13]} 5. e3 {[%emt 0:00:02]} Be7 {[%emt 0:00:02]} 6. Nf3 {[%emt 0:00:24]} O-O {[%emt 0:00:30]} 7. Bd3 {[%emt 0:00:49]} Nbd7 {[%emt 0:00:13]} 8. O-O {[%emt 0:00:08]} Re8 {[%emt 0:00:02]} 9. c5 {[%emt 0:00:13]} Nf8 {[%emt 0:00:16]} 10. Bh4 {[%emt 0:00:20]} Ng6 {[%emt 0:00:04]} 11. Bg3 {[%emt 0:00:02]} Bd7 {[%emt 0:00:17]} 12. b4 {[%emt 0:00:09]} Qc8 {[%emt 0:00:36]} 13. a4 {[%emt 0:00:33]} Bd8 {[%emt 0:00:13]} 14. Qe2 {[%emt 0:01:33]} Bc7 {[%emt 0:00:39]} 15. b5 {[%emt 0:00:16]} Bxg3 {[%emt 0:00:45]} 16. hxg3 {[%emt 0:00:03]} Qd8 {[%emt 0:00:49]} 17. a5 {[%emt 0:00:15]} Ne7 {[%emt 0:01:39]} 18. Ne5 {[%emt 0:01:39]} Ng6 {[%emt 0:00:33]} 19. f4 {[%emt 0:01:25]} Ne7 {[%emt 0:00:58]} 20. g4 {[%emt 0:00:10]} Rf8 {[%emt 0:00:59]} 21. g5 {[%emt 0:00:21]} Ne8 {[%emt 0:00:12]} 22. Qh5 {[%emt 0:00:09]} Ng6 {[%emt 0:00:30]} 23. Kf2 {[%emt 0:00:33]} f6 {[%emt 0:00:27]} 24. Nxg6 {[%emt 0:00:15]} f5 {[%emt 0:01:11]} 25. Nxf8 {[%emt 0:00:12]} Kxf8 {[%emt 0:00:49]} 26. b6 {[%emt 0:00:24]} Kg8 {[%emt 0:00:14]} 27. Rh1 {[%emt 0:00:11]} axb6 {[%emt 0:02:26]} 28. Qxh7+ {[%emt 0:00:07]} Kf8 {[%emt 0:00:02]} 29. axb6 {[%emt 0:00:13]} Rb8 {[%emt 0:00:09]} 30. Qh8+ {[%emt 0:00:48]} Kf7 {[%emt 0:02:40]} 31. g4 {[%emt 0:00:52]} Bc8 {[%emt 0:00:00]} 32. gxf5 {[%emt 0:00:25]} exf5 {[%emt 0:00:00]} 33. Ne2 {[%emt 0:00:42]} Be6 {[%emt 0:00:00]} 34. Ng1 {[%emt 0:00:03]} Ke7 {[%emt 0:00:00]} 35. Nf3 {[%emt 0:00:12]} Kd7 {[%emt 0:00:00]} 36. Qf8 {[%emt 0:00:14]} Kc8 {[%emt 0:00:00]} 37. Rh8 {[%emt 0:00:03]} Kd7 {[%emt 0:00:00]} 38. Ne5+ {[%emt 0:00:04]} Kc8 {[%emt 0:00:00]} 39. Qxe8 {[%emt 0:00:03]} Qxe8 {[%emt 0:00:00]} 40. Rxe8# {[%emt 0:00:03]} 1-0